Cogmind - Beta 15 @@@ ROGUE MODE // 2025.06.22 @ 10:47:48 Player: pakman Result: Destroyed by VX-KCR(R) with Subdweller Beam Cannon Performance ------------- Evolutions (0) 0 Regions Visited (3) 600 Robots Destroyed (19) 95 Value Destroyed (261) 261 Prototype IDs (4) 80 Alien Tech Used (0) 0 Bonus (0) 0 TOTAL SCORE: 1036 Bonus ------- None Cogmind --------- Core Integrity 0/250 Matter 222/300 Energy 100/100 System Corruption 0% Temperature Cool (9) Movement Rolling (130) Ox2 Location -10/Subcaves Parts ------- > --- POWER (1) -------- (None) > --- PROPULSION (2) --- Compact Wheel Compact Wheel > --- UTILITY (2) ------ Huge Storage Unit Seismic Detector > --- WEAPON (2) ------- Light Assault Rifle Grenade Launcher > --- INVENTORY (25) --- Light Ion Engine Light Ion Engine Light Deuterium Engine Light Treads Light Treads Light Treads Advanced Treads Wheel Sensor Array Experimental Sensor Array Hardlight Generator Improved Trap Extractor (0/6) Sensor Drone Bay (20/20) Shock Rifle EM Pulse Cannon Heavy Particle Cannon Light Assault Rifle Light Assault Rifle Shotgun Shotgun Shotgun Shotgun Heavy Battle Rifle Flak Cannon Mining Claw Peak State ------------ > --- POWER ------------ Light Ion Engine > --- PROPULSION ------- Wheel Compact Wheel > --- UTILITY ---------- Huge Storage Unit Experimental Sensor Array > --- WEAPON ----------- Light Assault Rifle Light Assault Rifle > --- INVENTORY -------- Light Ion Engine Light Ion Engine Light Deuterium Engine Light Treads Light Treads Light Treads Wheel Compact Wheel Sensor Array Seismic Detector Seismic Detector Sensor Drone Bay EM Pulse Cannon Heavy Particle Cannon Light Assault Rifle Shotgun Shotgun Shotgun Shotgun Heavy Battle Rifle Grenade Launcher Mining Claw [Rating: 19] Favorites ----------- Power Light Ion Engine Engine Light Ion Engine Propulsion Compact Wheel Leg Aluminum Leg Wheel Compact Wheel Utility Seismic Detector Device Seismic Detector Storage Huge Storage Unit Weapon Light Assault Rifle Energy Gun Medium Laser Energy Cannon EM Pulse Cannon Ballistic Gun Light Assault Rifle Launcher Grenade Launcher Slashing Weapon Mining Claw Build | -11 -10 -10 -10 ------- Run | Yrd Mat Min Sub Slots Evolved . | . . . . Power . | . . . . Propulsion . | . . . . Utility . | . . . . Weapon . | . . . . Parts Attached 24 | 1 13 10 . Power 4 | . 2 2 . Engine 4 | . 2 2 . Core . | . . . . Reactor . | . . . . Propulsion 5 | . 3 2 . Treads . | . . . . Leg . | . . . . Wheel 5 | . 3 2 . Hover . | . . . . Flight . | . . . . Utility 5 | 1 1 3 . Device 4 | 1 . 3 . Storage 1 | . 1 . . Processor . | . . . . Hackware . | . . . . Protection . | . . . . Artifact . | . . . . Weapon 10 | . 7 3 . Energy Gun 1 | . 1 . . Energy Cannon 1 | . . 1 . Ballistic Gun 6 | . 5 1 . Ballistic Cannon . | . . . . Launcher 1 | . . 1 . Special Weapon . | . . . . Impact Weapon . | . . . . Slashing Weapon 1 | . 1 . . Piercing Weapon . | . . . . Special Melee Weapon . | . . . . Unidentified Prototypes 2 | . . 2 . Parts Lost 6 | . 2 3 1 Power 2 | . . 1 1 Propulsion 2 | . 1 1 . Utility 1 | . . 1 . Weapon 1 | . 1 . . Highest Loss Streak 3 | . 2 3 1 To Critical Strikes . | . . . . Average Backups 16 | 6 9 20 25 Power 2 | 1 . 2 3 Propulsion 4 | 4 3 4 5 Utility 2 | . . 3 5 Weapon 7 | 1 4 10 12 Tool/Special . | . . . . Unused Backups 22 | . 9 . 13 Power 4 | . 2 . 2 Propulsion 7 | . 4 . 3 Utility 5 | . 2 . 3 Weapon 6 | . 1 . 5 Tool/Special . | . . . . Average Slot Usage (%) 97 | . 96 97 100 Engine 14 | . 14 14 14 Leg 3 | . 8 . . Wheel 23 | . 17 27 28 Device 13 | . 14 12 14 Storage 14 | . 14 14 14 Energy Gun 4 | . 12 . . Ballistic Gun 21 | . 14 27 14 Launcher 1 | . . 1 14 Peak Build Rating 19 | 7 10 19 13 Average Rating 9 | 6 7 11 12 On Entrance 8 | 6 7 8 13 Naked Turns . | . . . . Heaviest Build 91 | 13 90 91 88 Greatest Support 32 | 20 32 32 32 Greatest Overweight (x) 8 | . 5 8 2 Average Overweight (x) 2 | . 2 3 2 Largest Inventory Capacity 25 | 8 25 25 25 Average Capacity 22 | 8 20 25 25 Most Carried 25 | 6 13 25 25 Average Carried 16 | 6 9 20 25 Final Capacity 25 | 8 25 25 25 Final Carried 25 | 6 13 25 25 Class Distribution -------------------- 61% | Scavenger-Mutant 38% | Mutant Dominant Class ---------------- Mutant | -10/Materials Scavenger-Mutant | -10/Mines Scavenger-Mutant | -10/Subcaves Resources | -11 -10 -10 -10 ----------- Run | Yrd Mat Min Sub Matter Collected 658 | 225 206 163 64 Remotely . | . . . . Salvage Created 531 | 105 314 43 69 Parts 36 | 8 20 6 2 Haulers Intercepted 1 | . 1 . . Recyclers Shooed 3 | 1 2 . . Parts Field Recycled . | . . . . Retrieved Matter . | . . . . Parts Self-Destructed . | . . . . Prevented . | . . . . Kills | -11 -10 -10 -10 ------- Run | Yrd Mat Min Sub Combat Hostiles Destroyed 11 | . 8 1 2 Guns 9 | . 8 1 . AOE 2 | . . . 2 Classes Destroyed 8 | 2 5 . 1 Worker 1 | . 1 . . Tunneler 3 | 1 . 2 . Hauler 1 | . 1 . . Recycler 2 | 1 1 . . Operator 1 | . 1 . . Swarmer 6 | . 6 . . Grunt 2 | . 2 . . Subdweller 2 | . . . 2 Best Kill Streak 4 | 2 4 2 2 Combat Bots Only 3 | . 3 1 2 Max Kills in Single Turn 1 | 1 1 1 1 Gunslinging . | . . . . Exploded 1 | . . . 1 Melee . | . . . . Uniques/NPCs Destroyed 1 | . . 1 . YI-UF0 (-10/Mines) Combat | -11 -10 -10 -10 -------- Run | Yrd Mat Min Sub Hostile Shots Fired 96 | . 74 14 8 Missed 33 | . 26 4 3 Hits 63 | . 48 10 5 Projectile 63 | . 48 10 5 AOE 12 | . . 12 . Damage Taken 1013 | . 471 399 143 Core 279 | . 120 101 58 Absorbed by Shields . | . . . . Core Remaining (%) 100 | 100 . . . Volleys Fired 74 | 5 50 14 5 Largest 2 | 2 2 2 1 Hottest 96 | 70 70 96 30 Shots Fired 137 | 10 98 24 5 Gun 127 | 10 98 19 . Cannon 1 | . . 1 . Launcher 9 | . . 4 5 Special . | . . . . Kinetic 72 | 5 48 19 . Thermal 55 | 5 50 . . Explosive 9 | . . 4 5 Electromagnetic 1 | . . 1 . Robot Hit Streak 10 | 4 4 10 1 Robot Miss Streak 6 | 2 5 6 4 Penetration Max . | . . . . Secondary Targets 1 | . 1 . . Max Gunslinging Chain 1 | . 1 . . Shots Hit Robots 69 | 6 49 13 1 Core Hits 28 | 3 16 7 2 Critical Kills . | . . . . Critical Parts Destroyed 1 | . 1 . . Critical Strikes 4 | . 4 . . Burn 3 | . 3 . . Destroy 1 | . 1 . . Melee Attacks 4 | . 4 . . Impact . | . . . . Slashing 4 | . 4 . . Piercing . | . . . . Sneak Attacks . | . . . . Combat Hostiles . | . . . . Follow-up Attacks . | . . . . Damage Inflicted 1042 | 79 680 111 172 Guns 870 | 79 680 111 . Cannons . | . . . . Explosions 172 | . . . 172 Melee . | . . . . Ramming . | . . . . Kinetic 529 | 54 364 111 . Thermal 341 | 25 316 . . Explosive 172 | . . . 172 Electromagnetic . | . . . . Impact . | . . . . Slashing . | . . . . Piercing . | . . . . Highest Corruption . | . . . . Average Corruption . | . . . . Corruption Purged . | . . . . Corruption Blocked . | . . . . Overload Shots . | . . . . Overflow Damage 4 | . . . 4 Projectiles . | . . . . Explosions 4 | . . . 4 Melee . | . . . . Knockbacks . | . . . . Impact . | . . . . Kinetic . | . . . . Secondary . | . . . . Self-Inflicted Damage 29 | . . . 29 Shots 2 | . . . 2 Rammed . | . . . . Targets Rammed . | . . . . Kicked . | . . . . Crushed . | . . . . Highest Temperature 99 | 45 99 36 . Average Temperature 34 | 23 35 22 . Received Heat Transfer 75 | . 54 . 21 Siege Activations . | . . . . Martial Activations . | . . . . Shielding Activations . | . . . . Robots Disrupted . | . . . . Combat Hostiles . | . . . . Robots Corrupted . | . . . . Combat Hostiles . | . . . . Parts Fried . | . . . . Impact Corruptions . | . . . . Robots Melted . | . . . . Combat Hostiles . | . . . . Parts Melted 5 | . 5 . . Heat Transferred 1221 | 74 1147 . . Parts Sabotaged . | . . . . Parts Stolen . | . . . . Parts Stripped . | . . . . Power Chain Reactions . | . . . . Alert | -11 -10 -10 -10 ------- Run | Yrd Mat Min Sub Maximum Alert Level . | . . . . Low Security (%) 100 | 100 100 100 . Level 1 . | . . . . Level 2 . | . . . . Level 3 . | . . . . Level 4 . | . . . . Level 5 . | . . . . High Security . | . . . . Max Security . | . . . . Peak Influence 123 | 10 123 16 . Initial . | . . . . Average 16 | 2 40 . . Influence Increases 320 | 10 283 27 . Destroy 0b10 Robot/C 160 | . 160 . . Destroy 0b10 Robot/NC 40 | 10 20 10 . Destroy Leader 42 | . 42 . . Successful Hack 44 | . 44 . . Destroy Structure 19 | . 2 17 . Lose Combat Pursuer 15 | . 15 . . Influence Decreases 320 | 10 283 27 . Time Decay 300 | 10 263 27 . Lost Part 20 | . 20 . . Squads Dispatched 3 | . 2 1 . Investigation 2 | . 1 1 . Extermination . | . . . . Reinforcement 1 | . 1 . . Assault . | . . . . Garrison . | . . . . Intercept . | . . . . Searches Triggered . | . . . . Construction Impeded . | . . . . Haulers Reinforced . | . . . . Active Scanning Responses . | . . . . Cargo Convoy Interrupts . | . . . . Stealth | -11 -10 -10 -10 --------- Run | Yrd Mat Min Sub Distress Signals 1 | . 1 . . Communications Jammed . | . . . . Distress Signals . | . . . . Times Spotted 19 | . 13 2 4 Peak Tracking Total 4 | . 4 1 2 Tactical Retreats 1 | . 1 . . Traps | -11 -10 -10 -10 ------- Run | Yrd Mat Min Sub Traps Triggered 1 | . 1 . . Indirectly . | . . . . Trap Hack Attempts . | . . . . Triggered . | . . . . Disarmed . | . . . . Reprogrammed . | . . . . Reused . | . . . . Traps Extracted . | . . . . Installed . | . . . . Triggered . | . . . . Machines | -11 -10 -10 -10 ---------- Run | Yrd Mat Min Sub Machines Disabled . | . . . . Max in Single Turn . | . . . . Machines Repaired . | . . . . Machines Dismantled . | . . . . Machines Sabotaged . | . . . . Overloaded Fab Kills . | . . . . Hacking | -11 -10 -10 -10 --------- Run | Yrd Mat Min Sub Machines Accessed 8 | . 5 3 . Terminals 5 | . 5 . . Fabricators . | . . . . Repair Stations . | . . . . Recycling Units . | . . . . Scanalyzers . | . . . . Garrison Access . | . . . . Total Hacks 19 | . 16 3 . Successful 11 | . 8 3 . Failed 8 | . 8 . . Catastrophic 4 | . 4 . . Database Lockouts . | . . . . Manual 11 | . 11 . . Terminals 16 | . 16 . . Fabricators . | . . . . Repair Stations . | . . . . Recycling Units . | . . . . Scanalyzers . | . . . . Garrison Access . | . . . . Terminal Hacks 6 | . 3 3 . Robot Analysis 1 | . 1 . . Prototype ID Bank 1 | . 1 . . Open Door 3 | . . 3 . Recall Investigation 1 | . 1 . . Fabricator Hacks . | . . . . Repair Station Hacks . | . . . . Recycling Unit Hacks . | . . . . Scanalyzer . | . . . . Garrison Access Hacks . | . . . . Unauthorized Hacks 5 | . 5 . . Terminals 5 | . 5 . . Botnet 5 | . 5 . . Fabricators . | . . . . Repair Stations . | . . . . Recycling Units . | . . . . Scanalyzers . | . . . . Garrison Access . | . . . . Data Cores Recovered . | . . . . Used . | . . . . Hacking Detections 5 | . 5 . . Full Trace Events 2 | . 2 . . Feedback Events . | . . . . Feedback Blocked . | . . . . Robot Schematics Acquired . | . . . . Robots Built . | . . . . Authchips . | . . . . Time . | . . . . Total Robot Build Rating . | . . . . Part Schematics Acquired . | . . . . Parts Built . | . . . . Authchips . | . . . . Time . | . . . . Total Part Build Rating . | . . . . Parts Repaired . | . . . . Time . | . . . . Parts Recycled . | . . . . Recycled Matter . | . . . . Retrieved Matter . | . . . . Retrieved Components . | . . . . Parts Scanalyzed . | . . . . Part Schematics Acquired . | . . . . Parts Damaged . | . . . . Bothacking | -11 -10 -10 -10 ------------ Run | Yrd Mat Min Sub Used RIF Installer . | . . . . Robots Hacked . | . . . . Non-combat . | . . . . Combat . | . . . . Robot Hacks Applied . | . . . . Relay Couplers Released . | . . . . Fabnet Peak Effective % . | . . . . Robots Rewired . | . . . . Allies Hacked . | . . . . Hacks Repelled . | . . . . Allies | -11 -10 -10 -10 -------- Run | Yrd Mat Min Sub Total Allies . | . . . . Largest Group . | . . . . Highest-Rated Group . | . . . . Highest-Rated Ally . | . . . . Total Orders . | . . . . Ally Attacks . | . . . . Total Damage . | . . . . Kills . | . . . . Allies Corrupted . | . . . . Allies Melted . | . . . . Intel | -11 -10 -10 -10 ------- Run | Yrd Mat Min Sub Active Infowar (turns) 1655 | 10 693 893 59 Sensors 1 | . . 1 . Seismic 1654 | 10 693 892 59 Robot Analysis Total 1 | . 1 . . Derelict Logs Recovered 2 | . . 2 . Drone Launches . | . . . . Drone Recoveries . | . . . . Exploration | -11 -10 -10 -10 ------------- Run | Yrd Mat Min Sub Turns Passed 1760 | 35 693 973 59 Spaces Moved 1059 | 16 358 647 38 Core . | . . . . Treads . | . . . . Legs 121 | 16 105 . . Wheels 938 | . 253 647 38 Hover . | . . . . Flight . | . . . . Fastest Speed 120 | 120 120 130 130 Average Speed 137 | 120 137 137 130 Slowest Speed 200 | 120 175 200 130 Overloaded Moves . | . . . . Propulsion Burnouts . | . . . . Robots Hopped . | . . . . Potential Cave-ins . | . . . . Cave-ins Triggered . | . . . . Exploration Rate (%) 41 | 2 60 99 4 Regions Visited 3 Branch Regions 2 Pre-discovered Areas 1 | . . 1 . Known Exits Taken . | . . . . Unknown Exits Taken 3 | 1 1 1 . Scrap Searched 1 | . . 1 . Spaces Dug 18 | . 2 16 . Terrain Destroyed 53 | . 2 31 20 Melee 2 | . 2 . . Projectile 2 | . . 2 . AOE 49 | . . 29 20 Terrain Rammed . | . . . . Walls Destroyed . | . . . . Machines Disabled . | . . . . Actions | -11 -10 -10 -10 --------- Run | Yrd Mat Min Sub Total 1220 | 21 453 703 43 Wait 21 | . 7 14 . Move 1056 | 15 357 646 38 Hop . | . . . . Pick Up 25 | . 11 14 . Fast Attach 3 | 1 2 . . Attach 4 | . 1 3 . Detach 1 | . 1 . . Swap 23 | . 12 11 . Drop 9 | . 8 1 . Fire 74 | 5 50 14 5 Melee 4 | . 4 . . Ram . | . . . . Kick . | . . . . Crush . | . . . . Escape Stasis . | . . . . Rewire . | . . . . Trap . | . . . . Miscellaneous . | . . . . Route ------- -11/Scrapyard -10/Materials (discovered 2 exits: [*Mat] / *Min) -10/Mines (discovered 3 exits: [*Mat x2] / [*Sub]) -10/Subcaves History --------- Turn | Location | Event 1 | -11/Scrapyard | Discovered new exit (range 2) 36 | -11/Scrapyard | Entered Materials 314 | -10/Materials | Build established: Mutant 499 | -10/Materials | Discovered new exit (range 10) 636 | -10/Materials | Derelicts attacked the area 722 | -10/Materials | Discovered new exit (range 5) 729 | -10/Materials | Entered Mines 797 | -10/Mines | Met a Derelict shopkeep closing up shop 819 | -10/Mines | Build established: Scavenger-Mutant 873 | -10/Mines | A weapon hastily lodged in a ceiling crevice suddenly fell to the ground 951 | -10/Mines | Learned location of Storage (-8) 1016 | -10/Mines | Discovered new exit (range 5) 1032 | -10/Mines | Learned 2 Materials zone layouts 1067 | -10/Mines | Discovered new exit (range 13) 1166 | -10/Mines | Found a damaged Exp. Sensor Array with a note attached 1168 | -10/Mines | Found Prototype Device 1250 | -10/Mines | Found the Drone Emporium 1257 | -10/Mines | Found Prototype Device 1274 | -10/Mines | Discovered new exit (range 9) 1317 | -10/Mines | Identified Sensor Drone Bay 1319 | -10/Mines | Identified Exp. Sensor Array 1415 | -10/Mines | Core integrity fell below 50% 1422 | -10/Mines | Core integrity fell below 20% 1427 | -10/Mines | Destroyed YI-UF0 1454 | -10/Mines | Lost 3 parts (1p1n1u) 1485 | -10/Mines | Met a Derelict who couldn't figure out how to use a Trap Extractor 1702 | -10/Mines | Entered Subcaves 1703 | -10/Subcaves | Approached by a straggling Scientist 1761 | -10/Subcaves | Destroyed by VX-KCR(R) with Subdweller Beam Cannon Last Messages --------------- 01602_ Acquired 49 matter. 01614_ U-05 Engineer builds a Wall. 01646_ The unstable cave ceiling collapses. LOCATION=UNKNOWN AMBIENT_HEAT=-10 GOAL=ESCAPE 01703_ 6B-W15(c): "Thank the algorithms! I was beginning to lose hope I'd never make it past all the Subs lurking out here." 01706_ 6B-W15(c): "Hey, let me tag along and I can get us both out of this nasty situation. At least I think I can... The group I got separated from was talking about a shortcut back to the UFD." 01730_ PO-GLL(R) destroyed. 01734_ C9-FST(R) destroyed. 01742_ Subatomizers dissect the Disposable Heat Sink. 01744_ Acquired 45 matter. 01749_ Acquired 19 matter. 6B-W15(c): "I think it's somewhere east of here" 01754_ Subatomizers dissect the Disposable Heat Sink. 01760_ Lgt. Ion Engine destroyed. 01760_ Destroyed Lgt. Ion Engine. Map ----- +----------------------------------------------------+ | ?????????????????????????????????????????????????? | | ?????????????????????????????????????????????????? | | ?????????????????????????????????????????????????? | | ?????????????????????????????????????????????????? | | ?????????????????????????????????????????????????? | | ?????????????????????????????????????????????????? | | ?????????????????????????????????????????????????? | | ?????????????????????????????????????????????????? | | ?????????????????????????????????????????????????? | | ?????????????????????????????????????????????????? | | ?????????????????????????????????????????????????? | | ?????????????????????????????????????????????????? | | ?????????????????????????????????????????????????? | | ?????????????????????????????????????????????????? | | ?????????????????????????????????????????????????? | | ?????????????????????????????????????????????????? | | ?????????????????????????????????????????????????? | | ?????????????????????????????????????????????????? | | ??????????###????????????????????????????????????? | | ?????????##""??????????????????????#?????????????? | | ?????????#"""????????????????????# ### ??????????? | | #???????##" "?????????#####????# ?????????? | | ######### "#???????## #### ?????????? | | # ######??## R ????????? | | # # #### R ????????? | | # ### ## @ ????????? | | #???# #### #?????????????? | | ##???# ####???????????????????? | | ###????# ! c #?????????????????????? | | ######?# # ! #?????????????????????? | | # ### ### #?????????????????????? | | #### #?????????????????????? | | ###??### #?????????????????????? | | ##### ####??????### ##?????????????????????? | | ????####???????????########??????????????????????? | | ?????????????????????????????????????????????????? | | ?????????????????????????????????????????????????? | | ?????????????????????????????????????????????????? | | ?????????????????????????????????????????????????? | | ?????????????????????????????????????????????????? | | ?????????????????????????????????????????????????? | | ?????????????????????????????????????????????????? | | ?????????????????????????????????????????????????? | | ?????????????????????????????????????????????????? | | ?????????????????????????????????????????????????? | | ?????????????????????????????????????????????????? | | ?????????????????????????????????????????????????? | | ?????????????????????????????????????????????????? | | ?????????????????????????????????????????????????? | | | +----------------------------------------------------+ Best States ------------- Heat Dissipation 25 Energy Generation 10 Energy Capacity 125 Matter Stores 300 Matter Capacity 300 Sight Range 16 Robot Scan Range 20 Terrain Scan Density 10 Evasion (%) 55 Item Schematics ----------------- None Robot Schematics ------------------ None Fabricated ------------ Nothing Repaired ---------- Nothing Alien Tech Used ----------------- None Achievements -------------- None Challenges ------------ None Game ------ Seed SpikedScatterSabre Manual? 0 Play Time 00:17:41 Cumulative 92.4 hours Start 2025.06.22 @ 10:30:22 End 2025.06.22 @ 10:47:48 Sessions 1 Manual Loads 0 Difficulty Rogue Special Mode None Game No. 94 Rogue 94 Adventurer 0 Explorer 0 Win Type - Total 0 Types 0/0/0/0/0/0/0/0/0/0 Lore% 49 Gallery% 35 Achievement% 32 Wizard Run 0 Options --------- Layout 0 ASCII 0 Keyboard 1 Movement Numpad Keybinds 0 Fullscreen 2 Font 18/SmallcapsGlow Map View 76x50 Zoom Use 0% Tactical HUD 1 Map Filters NONE Filters NONE Steam 1 RUN: a537875a-1c7d-4375-94d3-4fc9fc804715